[Event "*** Titled Tuesday Blitz"]
[Site "Chess.com"]
[Date "2020.04.21"]
[Round "2"]
[White "Gabrielian_Artur"]
[Black "ShahMatKanal"]
[Result "1/2-1/2"]
[WhiteElo "2712"]
[BlackElo "2510"]
[TimeControl "180+1"]
[EndTime "10:17:45 PDT"]
[Termination "Game drawn by repetition"]

1. d4 {[%clk 0:03:00.9]} 1... d5 {[%clk 0:02:58.2]} 2. Nf3 {[%clk 0:03:01]} 2...
Nf6 {[%clk 0:02:56.7]} 3. Bf4 {[%clk 0:03:01.1]} 3... c5 {[%clk 0:02:55.3]} 4.
e3 {[%clk 0:03:01]} 4... cxd4 {[%clk 0:02:55.5]} 5. exd4 {[%clk 0:03:00.9]} 5...
Nc6 {[%clk 0:02:55.7]} 6. Nbd2 {[%clk 0:02:58.2]} 6... Bg4 {[%clk 0:02:50.6]} 7.
c3 {[%clk 0:02:54.3]} 7... e6 {[%clk 0:02:43.9]} 8. Bb5 {[%clk 0:02:44.6]} 8...
Bd6 {[%clk 0:02:37.3]} 9. Bg3 {[%clk 0:02:42.2]} 9... O-O {[%clk 0:02:33.3]} 10.
O-O {[%clk 0:02:39.6]} 10... Qc7 {[%clk 0:02:28.5]} 11. Re1 {[%clk 0:02:37.6]}
11... a6 {[%clk 0:02:13.6]} 12. Bd3 {[%clk 0:02:34.3]} 12... b5 {[%clk
0:02:06.2]} 13. a3 {[%clk 0:02:25.4]} 13... Na5 {[%clk 0:02:02.3]} 14. Qc2
{[%clk 0:02:25.2]} 14... Bh5 {[%clk 0:01:38]} 15. Ne5 {[%clk 0:01:53.5]} 15...
Bg6 {[%clk 0:01:33.9]} 16. Bxg6 {[%clk 0:01:46.6]} 16... hxg6 {[%clk 0:01:30.5]}
17. Ndf3 {[%clk 0:01:25.1]} 17... Ne4 {[%clk 0:01:22.1]} 18. Nd3 {[%clk
0:01:14.1]} 18... Nc4 {[%clk 0:01:06.7]} 19. Bxd6 {[%clk 0:01:13.6]} 19... Qxd6
{[%clk 0:01:06.2]} 20. Nfe5 {[%clk 0:01:03]} 20... Rfc8 {[%clk 0:00:54.6]} 21.
Qe2 {[%clk 0:01:02]} 21... a5 {[%clk 0:00:46.6]} 22. Qf3 {[%clk 0:00:47]} 22...
Qe7 {[%clk 0:00:39.3]} 23. h3 {[%clk 0:00:22]} 23... Qf6 {[%clk 0:00:35]} 24.
Qxf6 {[%clk 0:00:16.4]} 24... gxf6 {[%clk 0:00:34.8]} 25. Nd7 {[%clk 0:00:16.5]}
25... Kg7 {[%clk 0:00:32.6]} 26. f3 {[%clk 0:00:15.2]} 26... Ned2 {[%clk
0:00:29.8]} 27. N7c5 {[%clk 0:00:14.9]} 27... a4 {[%clk 0:00:22]} 28. Re2 {[%clk
0:00:14.5]} 28... Rh8 {[%clk 0:00:20.1]} 29. Rd1 {[%clk 0:00:12.9]} 29... Nb3
{[%clk 0:00:19.9]} 30. Nxb3 {[%clk 0:00:13.1]} 30... axb3 {[%clk 0:00:20.8]} 31.
Nc5 {[%clk 0:00:13.3]} 31... Na5 {[%clk 0:00:20.2]} 32. Kf2 {[%clk 0:00:12.9]}
32... g5 {[%clk 0:00:19.9]} 33. Rde1 {[%clk 0:00:11.8]} 33... Rh4 {[%clk
0:00:19.7]} 34. Kg3 {[%clk 0:00:11.6]} 34... Rah8 {[%clk 0:00:18.7]} 35. Kf2
{[%clk 0:00:11.9]} 35... Rf4 {[%clk 0:00:18]} 36. Kg3 {[%clk 0:00:12]} 36...
Rfh4 {[%clk 0:00:17.8]} 37. Kf2 {[%clk 0:00:12.3]} 37... Rf4 {[%clk 0:00:18.1]}
38. Nd3 {[%clk 0:00:12.4]} 38... Rfh4 {[%clk 0:00:18]} 39. Nc5 {[%clk
0:00:10.7]} 1/2-1/2

[Event "*** Titled Tuesday Blitz"]
[Site "Chess.com"]
[Date "2020.04.21"]
[Round "2"]
[White "ljuks68"]
[Black "Lagmantr"]
[Result "0-1"]
[WhiteElo "2337"]
[BlackElo "2718"]
[TimeControl "180+1"]
[EndTime "10:17:45 PDT"]
[Termination "Lagmantr won on time"]

1. e4 {[%clk 0:03:00.9]} 1... c6 {[%clk 0:02:59.6]} 2. d4 {[%clk 0:03:00.3]}
2... d5 {[%clk 0:03:00.5]} 3. e5 {[%clk 0:03:00.9]} 3... c5 {[%clk 0:02:58.6]}
4. Nf3 {[%clk 0:02:59.8]} 4... Nc6 {[%clk 0:02:57]} 5. c4 {[%clk 0:02:58.3]}
5... e6 {[%clk 0:02:56.2]} 6. Nc3 {[%clk 0:02:57]} 6... cxd4 {[%clk 0:02:49.5]}
7. Nxd4 {[%clk 0:02:56.4]} 7... Bc5 {[%clk 0:02:49]} 8. Nxc6 {[%clk 0:02:54.7]}
8... bxc6 {[%clk 0:02:43.8]} 9. Qg4 {[%clk 0:02:54.4]} 9... Ne7 {[%clk
0:02:37.2]} 10. Bd3 {[%clk 0:02:43.9]} 10... Ng6 {[%clk 0:02:33.4]} 11. O-O
{[%clk 0:02:32.8]} 11... Rb8 {[%clk 0:02:30]} 12. Qg3 {[%clk 0:02:17.3]} 12...
Ba6 {[%clk 0:02:21]} 13. Rd1 {[%clk 0:01:45.1]} 13... Qb6 {[%clk 0:01:58.6]} 14.
h4 {[%clk 0:01:32.3]} 14... Bd4 {[%clk 0:01:54]} 15. Bxg6 {[%clk 0:00:53.2]}
15... hxg6 {[%clk 0:01:49.7]} 16. Na4 {[%clk 0:00:47.4]} 16... Qb4 {[%clk
0:01:48.6]} 17. Rxd4 {[%clk 0:00:43.2]} 17... Qxa4 {[%clk 0:01:47.7]} 18. b3
{[%clk 0:00:35.8]} 18... Qa5 {[%clk 0:01:36.8]} 19. Bd2 {[%clk 0:00:35]} 19...
Qd8 {[%clk 0:01:36.6]} 20. Rd1 {[%clk 0:00:30.4]} 20... c5 {[%clk 0:01:23.7]}
21. Rf4 {[%clk 0:00:29.1]} 21... d4 {[%clk 0:01:22.1]} 22. Bc1 {[%clk
0:00:22.9]} 22... Qc7 {[%clk 0:01:18.3]} 23. Re1 {[%clk 0:00:17.4]} 23... Bb7
{[%clk 0:01:13]} 24. Bd2 {[%clk 0:00:16.5]} 24... a5 {[%clk 0:01:06.2]} 25. a3
{[%clk 0:00:14.7]} 25... Ba8 {[%clk 0:01:04.7]} 26. b4 {[%clk 0:00:14.4]} 26...
axb4 {[%clk 0:01:04.8]} 27. axb4 {[%clk 0:00:14.3]} 27... cxb4 {[%clk
0:01:05.7]} 28. Rxd4 {[%clk 0:00:14.1]} 28... b3 {[%clk 0:01:06.1]} 29. Rb1
{[%clk 0:00:10.6]} 29... b2 {[%clk 0:01:00.4]} 30. Bc3 {[%clk 0:00:10.3]} 30...
O-O {[%clk 0:00:53.3]} 31. Rxb2 {[%clk 0:00:10]} 31... Rxb2 {[%clk 0:00:52.5]}
32. Bxb2 {[%clk 0:00:09.7]} 32... Rb8 {[%clk 0:00:53.4]} 33. Ba3 {[%clk
0:00:06.8]} 33... Qc6 {[%clk 0:00:42.3]} 34. h5 {[%clk 0:00:05.1]} 34... gxh5
{[%clk 0:00:40.1]} 35. Qg5 {[%clk 0:00:05.1]} 35... g6 {[%clk 0:00:34.9]} 36.
Be7 {[%clk 0:00:03.8]} 36... Kh7 {[%clk 0:00:29.9]} 0-1

[Event "*** Titled Tuesday Blitz"]
[Site "Chess.com"]
[Date "2020.04.21"]
[Round "2"]
[White "Filip_Covic"]
[Black "Benjoneliere44"]
[Result "0-1"]
[WhiteElo "2304"]
[BlackElo "2602"]
[TimeControl "180+1"]
[EndTime "10:17:46 PDT"]
[Termination "Benjoneliere44 won on time"]

1. d4 {[%clk 0:03:00.9]} 1... d6 {[%clk 0:02:59.7]} 2. e4 {[%clk 0:02:54.7]}
2... g6 {[%clk 0:02:59.1]} 3. Nc3 {[%clk 0:02:54.3]} 3... Bg7 {[%clk 0:02:59.4]}
4. g3 {[%clk 0:02:54.9]} 4... Nc6 {[%clk 0:02:57]} 5. Be3 {[%clk 0:02:53.9]}
5... e5 {[%clk 0:02:57.1]} 6. d5 {[%clk 0:02:42.5]} 6... Nce7 {[%clk 0:02:56.8]}
7. Bg2 {[%clk 0:02:38]} 7... f5 {[%clk 0:02:57]} 8. Nge2 {[%clk 0:02:38.3]} 8...
Nf6 {[%clk 0:02:57]} 9. h3 {[%clk 0:02:37]} 9... O-O {[%clk 0:02:57]} 10. Qd2
{[%clk 0:02:37.5]} 10... c6 {[%clk 0:02:48.8]} 11. Bh6 {[%clk 0:02:24.8]} 11...
cxd5 {[%clk 0:02:47.4]} 12. exd5 {[%clk 0:02:22.4]} 12... Bd7 {[%clk 0:02:38.9]}
13. Bxg7 {[%clk 0:02:16.7]} 13... Kxg7 {[%clk 0:02:39.8]} 14. h4 {[%clk
0:02:14.1]} 14... b5 {[%clk 0:02:31.1]} 15. O-O {[%clk 0:01:53.6]} 15... b4
{[%clk 0:02:27.1]} 16. Nd1 {[%clk 0:01:52.5]} 16... a5 {[%clk 0:02:22.7]} 17.
Ne3 {[%clk 0:01:47]} 17... Bb5 {[%clk 0:02:18.2]} 18. Rfe1 {[%clk 0:01:41.9]}
18... Qb6 {[%clk 0:02:16.4]} 19. c4 {[%clk 0:01:40.9]} 19... bxc3 {[%clk
0:02:13]} 20. Nxc3 {[%clk 0:01:40.4]} 20... Bd7 {[%clk 0:02:06.1]} 21. Nc4
{[%clk 0:01:11.9]} 21... Qa6 {[%clk 0:02:02.5]} 22. Bf1 {[%clk 0:01:06.5]} 22...
Qa7 {[%clk 0:01:58.9]} 23. Nxd6 {[%clk 0:01:04.8]} 23... Rad8 {[%clk 0:01:55.5]}
24. Rxe5 {[%clk 0:01:02.9]} 24... Nc8 {[%clk 0:01:51.4]} 25. Nxc8 {[%clk
0:00:56.9]} 25... Bxc8 {[%clk 0:01:52.3]} 26. d6 {[%clk 0:00:53.4]} 26... Qb6
{[%clk 0:01:49.5]} 27. Re7+ {[%clk 0:00:50]} 27... Kh8 {[%clk 0:01:47.1]} 28.
Rd1 {[%clk 0:00:49.5]} 28... Bb7 {[%clk 0:01:44.2]} 29. Bg2 {[%clk 0:00:43.4]}
29... Bxg2 {[%clk 0:01:42.6]} 30. Kxg2 {[%clk 0:00:43.7]} 30... f4 {[%clk
0:01:32.5]} 31. Qxf4 {[%clk 0:00:37.9]} 31... Qxb2 {[%clk 0:01:29.5]} 32. Qe5
{[%clk 0:00:21.2]} 32... Kg8 {[%clk 0:01:24.2]} 33. Nd5 {[%clk 0:00:13.8]} 33...
Qxe5 {[%clk 0:01:14.1]} 34. Rxe5 {[%clk 0:00:14.7]} 34... Ng4 {[%clk 0:01:14.6]}
35. Re2 {[%clk 0:00:10.2]} 35... Kg7 {[%clk 0:01:14.7]} 36. Nf4 {[%clk
0:00:09.3]} 36... Kf6 {[%clk 0:01:06.5]} 37. Ne6 {[%clk 0:00:03.3]} 37... Rfe8
{[%clk 0:01:06.8]} 38. Nxd8 {[%clk 0:00:03]} 38... Rxe2 {[%clk 0:01:07.7]} 39.
d7 {[%clk 0:00:02.2]} 39... Ne3+ {[%clk 0:00:55.3]} 40. Kg1 {[%clk 0:00:01.7]}
40... Nxd1 {[%clk 0:00:56.2]} 41. Nc6 {[%clk 0:00:01.4]} 41... Rd2 {[%clk
0:00:54.3]} 42. d8=Q+ {[%clk 0:00:01.3]} 42... Rxd8 {[%clk 0:00:54.7]} 43. Nxd8
{[%clk 0:00:02.2]} 43... Nc3 {[%clk 0:00:55.4]} 44. Nc6 {[%clk 0:00:02.5]} 44...
a4 {[%clk 0:00:55]} 45. Nb4 {[%clk 0:00:02.4]} 45... Ke5 {[%clk 0:00:54.1]} 46.
a3 {[%clk 0:00:01.6]} 46... Kd4 {[%clk 0:00:53.5]} 47. f3 {[%clk 0:00:01.5]}
47... Nb5 {[%clk 0:00:53.4]} 48. Nc2+ {[%clk 0:00:01.6]} 48... Kc3 {[%clk
0:00:53.3]} 49. Ne3 {[%clk 0:00:01.8]} 49... Nxa3 {[%clk 0:00:53.4]} 50. g4
{[%clk 0:00:02.3]} 50... Nc4 {[%clk 0:00:53.4]} 51. Nd1+ {[%clk 0:00:02.1]}
51... Kc2 {[%clk 0:00:52.7]} 52. Nf2 {[%clk 0:00:02.1]} 52... a3 {[%clk
0:00:52.8]} 0-1

[Event "*** Titled Tuesday Blitz"]
[Site "Chess.com"]
[Date "2020.04.21"]
[Round "2"]
[White "Ariadna_Atreides"]
[Black "BIG_Pirate"]
[Result "0-1"]
[WhiteElo "2051"]
[BlackElo "2383"]
[TimeControl "180+1"]
[EndTime "10:17:46 PDT"]
[Termination "BIG_Pirate won on time"]

1. d4 {[%clk 0:02:38.6]} 1... d5 {[%clk 0:02:58.9]} 2. Nf3 {[%clk 0:02:38.4]}
2... c6 {[%clk 0:02:58]} 3. c4 {[%clk 0:02:37]} 3... dxc4 {[%clk 0:02:56.4]} 4.
a4 {[%clk 0:02:33.6]} 4... Nf6 {[%clk 0:02:52.9]} 5. e3 {[%clk 0:02:33.2]} 5...
Be6 {[%clk 0:02:51.5]} 6. Na3 {[%clk 0:02:28.8]} 6... Bd5 {[%clk 0:02:47.7]} 7.
Nxc4 {[%clk 0:02:25.7]} 7... e6 {[%clk 0:02:47.3]} 8. Bd2 {[%clk 0:02:21.5]}
8... c5 {[%clk 0:02:45.6]} 9. Nce5 {[%clk 0:02:18.4]} 9... a6 {[%clk 0:02:18.3]}
10. Bc3 {[%clk 0:02:08.8]} 10... Nc6 {[%clk 0:02:04.9]} 11. Nxc6 {[%clk
0:02:06.2]} 11... Bxc6 {[%clk 0:02:04.6]} 12. Be2 {[%clk 0:02:02.5]} 12... Be7
{[%clk 0:02:02.6]} 13. O-O {[%clk 0:02:01.8]} 13... O-O {[%clk 0:02:02.5]} 14.
dxc5 {[%clk 0:01:59.1]} 14... Bxc5 {[%clk 0:02:01.5]} 15. Ne5 {[%clk 0:01:55.1]}
15... Bd5 {[%clk 0:01:57.9]} 16. b4 {[%clk 0:01:50.6]} 16... Bd6 {[%clk
0:01:54.8]} 17. Qc2 {[%clk 0:01:45]} 17... Rc8 {[%clk 0:01:49.9]} 18. Qb2 {[%clk
0:01:44.7]} 18... Qe7 {[%clk 0:01:06.7]} 19. f3 {[%clk 0:01:38.6]} 19... Bxe5
{[%clk 0:00:41]} 20. Bxe5 {[%clk 0:01:37]} 20... Bc4 {[%clk 0:00:41.5]} 21. Bxf6
{[%clk 0:00:56.8]} 21... Qxf6 {[%clk 0:00:39.3]} 22. Qxf6 {[%clk 0:00:49.4]}
22... gxf6 {[%clk 0:00:40.2]} 23. Rfe1 {[%clk 0:00:42.7]} 23... Rfd8 {[%clk
0:00:38.2]} 24. Rac1 {[%clk 0:00:19.2]} 24... b5 {[%clk 0:00:17]} 25. axb5
{[%clk 0:00:18.5]} 25... axb5 {[%clk 0:00:17.9]} 26. Kf1 {[%clk 0:00:16.3]}
26... Rd2 {[%clk 0:00:16]} 27. Rcd1 {[%clk 0:00:13.8]} 27... Rb2 {[%clk
0:00:13.5]} 28. Rc1 {[%clk 0:00:10.2]} 28... Rxb4 {[%clk 0:00:12.8]} 29. Bxc4
{[%clk 0:00:05.6]} 29... Rcxc4 {[%clk 0:00:10.2]} 30. Ra1 {[%clk 0:00:04.7]}
30... Rc2 {[%clk 0:00:09.7]} 31. Ra8+ {[%clk 0:00:03.5]} 31... Kg7 {[%clk
0:00:10.1]} 32. Re2 {[%clk 0:00:01.9]} 32... Rb1+ {[%clk 0:00:09.2]} 33. Kf2
{[%clk 0:00:01.5]} 33... Rbb2 {[%clk 0:00:09.9]} 0-1

[Event "*** Titled Tuesday Blitz"]
[Site "Chess.com"]
[Date "2020.04.21"]
[Round "2"]
[White "TommyWen1"]
[Black "Alopekos"]
[Result "0-1"]
[WhiteElo "2062"]
[BlackElo "2387"]
[TimeControl "180+1"]
[EndTime "10:17:48 PDT"]
[Termination "Alopekos won by checkmate"]

1. e4 {[%clk 0:03:00.9]} 1... c5 {[%clk 0:02:59]} 2. Nf3 {[%clk 0:03:00.6]} 2...
e6 {[%clk 0:02:59]} 3. d4 {[%clk 0:03:00.5]} 3... cxd4 {[%clk 0:02:59.9]} 4.
Nxd4 {[%clk 0:03:01.3]} 4... Nc6 {[%clk 0:03:00.3]} 5. Nc3 {[%clk 0:03:00.8]}
5... Qc7 {[%clk 0:03:00.5]} 6. Qd3 {[%clk 0:03:00]} 6... Nf6 {[%clk 0:02:57.8]}
7. Nxc6 {[%clk 0:02:51.4]} 7... bxc6 {[%clk 0:02:53.6]} 8. Qg3 {[%clk
0:02:50.9]} 8... Qxg3 {[%clk 0:02:54.2]} 9. hxg3 {[%clk 0:02:51]} 9... d5 {[%clk
0:02:54.9]} 10. Bd3 {[%clk 0:02:42.8]} 10... Bc5 {[%clk 0:02:28.7]} 11. f3
{[%clk 0:02:09.3]} 11... a5 {[%clk 0:01:42.6]} 12. Na4 {[%clk 0:02:00.2]} 12...
Bd6 {[%clk 0:01:23.9]} 13. Bf4 {[%clk 0:01:39.1]} 13... e5 {[%clk 0:01:18.6]}
14. Be3 {[%clk 0:01:35.3]} 14... Rb8 {[%clk 0:00:41.4]} 15. a3 {[%clk
0:01:01.7]} 15... Ke7 {[%clk 0:00:36.9]} 16. O-O-O {[%clk 0:00:46.2]} 16... Be6
{[%clk 0:00:35.9]} 17. Bc5 {[%clk 0:00:44.7]} 17... Rhd8 {[%clk 0:00:30.5]} 18.
g4 {[%clk 0:00:44.1]} 18... h6 {[%clk 0:00:27.9]} 19. Rhe1 {[%clk 0:00:35.9]}
19... Nd7 {[%clk 0:00:17.2]} 20. Bxd6+ {[%clk 0:00:33.4]} 20... Kxd6 {[%clk
0:00:18.1]} 21. exd5 {[%clk 0:00:33.1]} 21... cxd5 {[%clk 0:00:18.4]} 22. c4
{[%clk 0:00:29.2]} 22... Rdc8 {[%clk 0:00:16.7]} 23. Kb1 {[%clk 0:00:29.1]}
23... d4 {[%clk 0:00:15.2]} 24. Rc1 {[%clk 0:00:24.8]} 24... f6 {[%clk
0:00:09.7]} 25. Ka2 {[%clk 0:00:22.6]} 25... Rc7 {[%clk 0:00:07.8]} 26. b3
{[%clk 0:00:21.9]} 26... Rcb7 {[%clk 0:00:07.3]} 27. Ra1 {[%clk 0:00:21.9]}
27... Rxb3 {[%clk 0:00:06.8]} 28. Rab1 {[%clk 0:00:17.4]} 28... Rxd3 {[%clk
0:00:05.8]} 29. Rxb8 {[%clk 0:00:16]} 29... Nxb8 {[%clk 0:00:06.7]} 30. Rb1
{[%clk 0:00:16.1]} 30... Bxc4+ {[%clk 0:00:06.6]} 31. Ka1 {[%clk 0:00:16]} 31...
Rxa3+ {[%clk 0:00:06.4]} 32. Kb2 {[%clk 0:00:16.5]} 32... Rxa4 {[%clk 0:00:07]}
33. Kc2 {[%clk 0:00:16.9]} 33... Rb4 {[%clk 0:00:07.7]} 34. Ra1 {[%clk
0:00:16.6]} 34... Nc6 {[%clk 0:00:08.3]} 35. Kd2 {[%clk 0:00:16.6]} 35... Rb2+
{[%clk 0:00:07.8]} 36. Ke1 {[%clk 0:00:16.5]} 36... Rxg2 {[%clk 0:00:08.3]} 37.
Ra3 {[%clk 0:00:15.1]} 37... Nb4 {[%clk 0:00:06]} 38. Rxa5 {[%clk 0:00:14]}
38... Nc2+ {[%clk 0:00:06]} 39. Kd1 {[%clk 0:00:14]} 39... Ne3+ {[%clk
0:00:06.1]} 40. Kc1 {[%clk 0:00:14.8]} 40... d3 {[%clk 0:00:06.5]} 41. Ra8
{[%clk 0:00:13.8]} 41... d2+ {[%clk 0:00:06.5]} 42. Kb2 {[%clk 0:00:14.7]} 42...
d1=Q+ {[%clk 0:00:06.8]} 43. Ka3 {[%clk 0:00:13.7]} 43... Qb3# {[%clk
0:00:07.7]} 0-1

[Event "*** Titled Tuesday Blitz"]
[Site "Chess.com"]
[Date "2020.04.21"]
[Round "2"]
[White "11kevin"]
[Black "eljanov"]
[Result "0-1"]
[WhiteElo "2559"]
[BlackElo "2809"]
[TimeControl "180+1"]
[EndTime "10:17:49 PDT"]
[Termination "eljanov won by resignation"]

1. d4 {[%clk 0:03:00.9]} 1... Nf6 {[%clk 0:02:57.3]} 2. c4 {[%clk 0:02:59.9]}
2... e6 {[%clk 0:02:54.7]} 3. Nc3 {[%clk 0:02:59.7]} 3... Bb4 {[%clk 0:02:53.1]}
4. e3 {[%clk 0:02:59.4]} 4... O-O {[%clk 0:02:52.4]} 5. Bd2 {[%clk 0:02:59.4]}
5... d5 {[%clk 0:02:47.1]} 6. Nf3 {[%clk 0:02:58.5]} 6... b6 {[%clk 0:02:46.2]}
7. cxd5 {[%clk 0:02:58.3]} 7... exd5 {[%clk 0:02:44.7]} 8. Rc1 {[%clk
0:02:55.4]} 8... Bb7 {[%clk 0:02:24.8]} 9. Bd3 {[%clk 0:02:54.5]} 9... a6 {[%clk
0:02:21.6]} 10. O-O {[%clk 0:02:50.7]} 10... Nbd7 {[%clk 0:02:18.6]} 11. Ne5
{[%clk 0:02:45.3]} 11... c5 {[%clk 0:01:46.5]} 12. Qf3 {[%clk 0:02:24.6]} 12...
Nxe5 {[%clk 0:01:35.9]} 13. dxe5 {[%clk 0:02:24.1]} 13... Ne4 {[%clk 0:01:36.5]}
14. Qh3 {[%clk 0:02:02.2]} 14... g6 {[%clk 0:01:16.2]} 15. Be1 {[%clk
0:01:43.1]} 15... Qe7 {[%clk 0:01:10.1]} 16. f4 {[%clk 0:01:39.4]} 16... Bxc3
{[%clk 0:01:04.7]} 17. bxc3 {[%clk 0:01:37.3]} 17... Qe6 {[%clk 0:00:57.3]} 18.
Qh6 {[%clk 0:01:33.4]} 18... f6 {[%clk 0:00:52.6]} 19. Bxe4 {[%clk 0:01:21.1]}
19... dxe4 {[%clk 0:00:51.6]} 20. c4 {[%clk 0:01:21.4]} 20... fxe5 {[%clk
0:00:37.3]} 21. Bc3 {[%clk 0:01:21.1]} 21... Rad8 {[%clk 0:00:34.7]} 22. Bxe5
{[%clk 0:01:19.8]} 22... Rf7 {[%clk 0:00:34.2]} 23. Rcd1 {[%clk 0:01:17.1]}
23... Rd3 {[%clk 0:00:34.2]} 24. h4 {[%clk 0:01:04.5]} 24... Bc8 {[%clk
0:00:17.9]} 25. h5 {[%clk 0:01:01.3]} 25... Qg4 {[%clk 0:00:17.3]} 26. hxg6
{[%clk 0:00:54.6]} 26... Qxg6 {[%clk 0:00:17.2]} 27. Qh4 {[%clk 0:00:52.5]}
27... Qg4 {[%clk 0:00:15.6]} 28. Qe1 {[%clk 0:00:41.5]} 28... Rfd7 {[%clk
0:00:12.6]} 29. Rb1 {[%clk 0:00:38.6]} 29... Rd2 {[%clk 0:00:12.8]} 30. Rf2
{[%clk 0:00:38.8]} 30... Rd1 {[%clk 0:00:12.8]} 31. Rxd1 {[%clk 0:00:34.6]}
31... Rxd1 {[%clk 0:00:12.9]} 32. Rf1 {[%clk 0:00:33.9]} 32... Rxe1 {[%clk
0:00:12.9]} 33. Rxe1 {[%clk 0:00:34.8]} 33... Be6 {[%clk 0:00:12.9]} 34. Rc1
{[%clk 0:00:34.4]} 34... Qe2 {[%clk 0:00:12.4]} 35. a3 {[%clk 0:00:32.1]} 35...
Bxc4 {[%clk 0:00:12.4]} 36. Rb1 {[%clk 0:00:31.9]} 36... Qxe3+ {[%clk
0:00:11.2]} 37. Kh2 {[%clk 0:00:32.4]} 37... b5 {[%clk 0:00:11.1]} 38. Rd1
{[%clk 0:00:32.7]} 38... Bd3 {[%clk 0:00:11.5]} 39. Rh1 {[%clk 0:00:30.2]} 39...
h5 {[%clk 0:00:10.9]} 40. f5 {[%clk 0:00:27.9]} 40... Qg5 {[%clk 0:00:10.7]} 41.
Rd1 {[%clk 0:00:25.9]} 41... Qxf5 {[%clk 0:00:10.6]} 42. Bg3 {[%clk 0:00:25.6]}
42... h4 {[%clk 0:00:09.9]} 43. Bxh4 {[%clk 0:00:25.3]} 43... Qg4 {[%clk
0:00:10.2]} 0-1

[Event "*** Titled Tuesday Blitz"]
[Site "Chess.com"]
[Date "2020.04.21"]
[Round "2"]
[White "dragos420"]
[Black "Swarnapuri"]
[Result "1/2-1/2"]
[WhiteElo "2509"]
[BlackElo "2710"]
[TimeControl "180+1"]
[EndTime "10:17:50 PDT"]
[Termination "Game drawn by repetition"]

1. e4 {[%clk 0:03:00.9]} 1... Nc6 {[%clk 0:03:00.9]} 2. Nf3 {[%clk 0:02:59.5]}
2... d6 {[%clk 0:03:01.1]} 3. d4 {[%clk 0:02:59.4]} 3... Nf6 {[%clk 0:03:02]} 4.
Nc3 {[%clk 0:02:59.8]} 4... Bg4 {[%clk 0:03:02.6]} 5. Be3 {[%clk 0:02:58.7]}
5... e5 {[%clk 0:03:03.1]} 6. d5 {[%clk 0:02:55.4]} 6... Ne7 {[%clk 0:03:03.4]}
7. Be2 {[%clk 0:02:55.2]} 7... Ng6 {[%clk 0:03:03.4]} 8. h3 {[%clk 0:02:54]}
8... Bd7 {[%clk 0:03:03.2]} 9. Qd2 {[%clk 0:02:49]} 9... Be7 {[%clk 0:03:03.6]}
10. O-O-O {[%clk 0:02:48.4]} 10... c5 {[%clk 0:03:03.8]} 11. g4 {[%clk
0:02:42.3]} 11... h6 {[%clk 0:03:03]} 12. Rdg1 {[%clk 0:02:34.3]} 12... Nh7
{[%clk 0:03:02.9]} 13. h4 {[%clk 0:02:32.3]} 13... Nxh4 {[%clk 0:03:02.6]} 14.
Nxh4 {[%clk 0:02:33.2]} 14... Bxh4 {[%clk 0:03:02.8]} 15. g5 {[%clk 0:02:17.8]}
15... hxg5 {[%clk 0:02:43.7]} 16. Nb5 {[%clk 0:01:47.7]} 16... Bxb5 {[%clk
0:02:20.1]} 17. Bxb5+ {[%clk 0:01:48.6]} 17... Kf8 {[%clk 0:02:20.8]} 18. Be2
{[%clk 0:01:38.4]} 18... g6 {[%clk 0:02:09.4]} 19. Rh3 {[%clk 0:01:16.3]} 19...
f6 {[%clk 0:01:57.7]} 20. Bg4 {[%clk 0:01:09.4]} 20... Kg7 {[%clk 0:01:49]} 21.
f3 {[%clk 0:01:08.5]} 21... Nf8 {[%clk 0:01:45.6]} 22. Qg2 {[%clk 0:01:04.1]}
22... b5 {[%clk 0:01:42.8]} 23. Rgh1 {[%clk 0:00:59.8]} 23... Rh7 {[%clk
0:01:40.5]} 24. Bf2 {[%clk 0:00:58.8]} 24... Bxf2 {[%clk 0:01:39.3]} 25. Rxh7+
{[%clk 0:00:54.5]} 25... Nxh7 {[%clk 0:01:40.2]} 26. Qxf2 {[%clk 0:00:55.4]}
26... Qg8 {[%clk 0:01:10.1]} 27. Qh2 {[%clk 0:00:42.9]} 27... Nf8 {[%clk
0:00:56.1]} 28. Qh6+ {[%clk 0:00:24.1]} 28... Kf7 {[%clk 0:00:56.2]} 29. Qh3
{[%clk 0:00:25]} 29... Re8 {[%clk 0:00:50.6]} 30. Bd7 {[%clk 0:00:22.9]} 30...
Re7 {[%clk 0:00:35.8]} 31. Bxb5 {[%clk 0:00:23]} 31... a6 {[%clk 0:00:30.1]} 32.
Bxa6 {[%clk 0:00:22.3]} 32... Nd7 {[%clk 0:00:30.6]} 33. Bb5 {[%clk 0:00:11.7]}
33... Nb6 {[%clk 0:00:22.5]} 34. Bc6 {[%clk 0:00:05.8]} 34... Nc4 {[%clk
0:00:20.7]} 35. b3 {[%clk 0:00:02.5]} 35... Na5 {[%clk 0:00:19.6]} 36. Bd7
{[%clk 0:00:02.8]} 36... Kf8 {[%clk 0:00:18.7]} 37. Be6 {[%clk 0:00:03.4]} 37...
Qg7 {[%clk 0:00:18.4]} 38. Qh8+ {[%clk 0:00:03.3]} 38... Qxh8 {[%clk 0:00:19]}
39. Rxh8+ {[%clk 0:00:04.1]} 39... Kg7 {[%clk 0:00:19.9]} 40. Rg8+ {[%clk
0:00:04.3]} 40... Kh6 {[%clk 0:00:19.8]} 41. Rf8 {[%clk 0:00:04.9]} 41... Kg7
{[%clk 0:00:19.6]} 42. Rg8+ {[%clk 0:00:05.4]} 42... Kh6 {[%clk 0:00:20.3]} 43.
Rf8 {[%clk 0:00:06]} 43... Kg7 {[%clk 0:00:20.9]} 44. Rg8+ {[%clk 0:00:06.3]}
1/2-1/2